fUSD/lending_fUSD_20250708
["ID","MTS","AMOUNT","RATE_DAILY","PERIOD"]
[370289194,1751937070397,-460.0,0.00031506,7]
[370289195,1751937070408,-681.54,0.00031506,7]
[370289196,1751937070418,-687.76,0.00031506,7]
[370289197,1751937070431,-460.0,0.00031506,7]
[370289198,1751937070440,-460.0,0.00031506,7]
[370289199,1751937070450,-460.0,0.00031506,7]
[370289200,1751937070460,-511.97,0.00031506,7]
[370289201,1751937070471,-615.76,0.00031506,7]
[370289202,1751937070480,-473.71,0.00031506,7]
[370289203,1751937070490,-460.0,0.00031506,7]
[370289204,1751937070502,-460.0,0.00031506,7]
[370289205,1751937070513,-1195.65,0.00031506,7]
[370289206,1751937070523,-709.33,0.00031506,7]
[370289207,1751937070533,-460.0,0.00031506,7]
[370289208,1751937070543,-550.36,0.00031506,7]
[370289209,1751937070552,-151.0,0.00031506,7]
[370289210,1751937070563,-460.0,0.00031506,7]
[370289211,1751937070573,-577.54,0.00031506,7]
[370289212,1751937070583,-460.0,0.00031506,7]
[370289213,1751937070593,-460.0,0.00031506,7]
[370289214,1751937070603,-1669.86,0.00031506,7]
[370289215,1751937070613,-161.44108781,0.00031506,7]
[370289216,1751937070624,-460.0,0.00031506,7]
[370289217,1751937070634,-484.13,0.00031506,7]
[370289218,1751937070644,-460.0,0.00031506,7]
[370289219,1751937070654,-460.0,0.00031506,7]
[370289220,1751937070664,-888.97,0.00031506,7]
[370289221,1751937070674,-460.0,0.00031506,7]
[370289222,1751937070683,-523.29,0.00031506,7]
[370289223,1751937070693,-460.0,0.00031506,7]
[370289224,1751937070703,-151.0,0.00031506,7]
[370289225,1751937070714,-753.67,0.00031506,7]
[370289226,1751937070723,-151.0,0.00031506,7]
[370289227,1751937070733,-460.0,0.00031506,7]
[370289228,1751937070744,-783.83,0.00031506,7]
[370289229,1751937070755,-151.0,0.00031506,7]
[370289230,1751937070764,-594.53,0.00031506,7]
[370289231,1751937070774,-460.0,0.00031506,7]
[370289232,1751937070785,-628.54,0.00031506,7]
[370289233,1751937070795,-151.0,0.00031506,7]
[370289234,1751937070805,-460.0,0.00031506,7]
[370289235,1751937070814,-568.94,0.00031506,7]
[370289236,1751937070824,-828.38,0.00031506,7]
[370289237,1751937070834,-460.0,0.00031506,7]
[370289238,1751937070844,-460.0,0.00031506,7]
[370289239,1751937070855,-460.0,0.00031506,7]
[370289240,1751937070865,-301.235212,0.00031506,7]
[370289241,1751937070879,-460.0,0.00031506,7]
[370289242,1751937070891,-460.0,0.00031506,7]
[370289243,1751937070902,-369.69,0.00031506,7]
[370289244,1751937070912,-460.0,0.00031506,7]
[370289245,1751937070927,-460.0,0.00031506,7]
[370289246,1751937070938,-301.235212,0.00031506,7]
[370289247,1751937070947,-460.0,0.00031506,7]
[370289248,1751937070957,-6022.11,0.00031506,7]
[370289249,1751937070967,-852.78,0.00031506,7]
[370289250,1751937070976,-1221.66305294,0.00031555,25]
[370289251,1751937070986,-2500.07206869,0.00031685,2]
[370289252,1751937070996,-500.0,0.00031761,2]
[370289253,1751937071006,-500.0,0.00031776,7]
[370289254,1751937071015,-460.0,0.00031778,7]
[370289255,1751937071025,-460.0,0.00031778,7]
[370289256,1751937071034,-156.607917,0.00031779,7]
[370289257,1751937071044,-151.0,0.00031779,7]
[370289258,1751937071053,-151.0,0.00031779,7]
[370289259,1751937071062,-151.0,0.00031779,7]
[370289260,1751937071072,-151.0,0.00031779,7]
[370289261,1751937071081,-151.0,0.00031779,7]
[370289262,1751937071090,-151.0,0.00031779,7]
[370289263,1751937071099,-187.329732,0.00031779,7]
[370289264,1751937071108,-151.0,0.00031779,7]
[370289265,1751937071118,-151.0,0.00031779,7]
[370289266,1751937071127,-151.0,0.00031779,7]
[370289267,1751937071137,-151.0,0.00031779,7]
[370289268,1751937071147,-151.0,0.00031779,7]
[370289269,1751937071156,-151.0,0.00031779,7]
[370289270,1751937071166,-151.0,0.00031779,7]
[370289271,1751937071176,-151.0,0.00031779,7]
[370289272,1751937071185,-500.0,0.00031779,7]
[370289273,1751937071194,-500.0,0.00031779,7]
[370289274,1751937071204,-500.0,0.00031779,7]
[370289275,1751937071214,-500.0,0.00031779,7]
[370289276,1751937071223,-500.0,0.00031779,7]
[370289277,1751937071233,-500.0,0.00031779,7]
[370289278,1751937071394,-621.81011409,0.00031779,7]
[370289279,1751937071405,-2459.85,0.00031779,7]
[370289280,1751937071415,-500.0,0.00031779,7]
[370289281,1751937071426,-500.0,0.00031779,7]
[370289282,1751937071436,-500.0,0.00031779,7]
[370289283,1751937071446,-647.95,0.00031779,7]
[370289284,1751937071455,-740.56,0.00031779,7]
[370289285,1751937071465,-499.69,0.0003178,7]
[370289286,1751937071475,-189.694103,0.0003178,7]
[370289287,1751937071484,-162.142003,0.0003178,7]
[370289288,1751937071494,-150.139727,0.0003178,7]
[370289289,1751937071503,-460.0,0.0003178,7]
[370289290,1751937071514,-151.0,0.0003178,7]
[370289291,1751937071523,-151.0,0.0003178,7]
[370289292,1751937071533,-151.0,0.0003178,7]
[370289293,1751937071542,-151.0,0.0003178,7]
[370289294,1751937071552,-151.0,0.0003178,7]
[370289295,1751937071561,-151.0,0.0003178,7]
[370289296,1751937071570,-151.0,0.0003178,7]
[370289297,1751937071580,-151.0,0.0003178,7]
[370289298,1751937071589,-460.0,0.0003178,7]
[370289299,1751937071599,-151.0,0.0003178,7]
[370289300,1751937071609,-151.0,0.0003178,7]
[370289301,1751937071618,-619.79,0.0003178,7]
[370289302,1751937071628,-151.0,0.0003178,7]
[370289303,1751937071638,-460.0,0.0003178,7]
[370289304,1751937071647,-151.0,0.0003178,7]
[370289305,1751937071657,-482.56,0.0003178,7]
[370289306,1751937071666,-151.0,0.0003178,7]
[370289307,1751937071676,-460.0,0.0003178,7]
[370289308,1751937071685,-460.0,0.0003178,7]
[370289309,1751937071695,-704.140895,0.0003178,7]
[370289310,1751937071704,-495.97,0.0003178,7]
[370289311,1751937071713,-704.140895,0.0003178,7]
[370289312,1751937071723,-460.0,0.0003178,7]
[370289313,1751937071733,-460.0,0.0003178,7]
[370289314,1751937071742,-460.0,0.0003178,7]
[370289315,1751937071752,-871.96,0.0003178,7]
[370289316,1751937071761,-460.0,0.0003178,7]
[370289317,1751937071770,-460.0,0.0003178,7]
[370289318,1751937071779,-460.0,0.0003178,7]
[370289319,1751937071789,-460.0,0.0003178,7]
[370289320,1751937071799,-622.31,0.0003178,7]
[370289321,1751937071809,-597.54,0.0003178,7]
[370289322,1751937071819,-573.54528324,0.0003178,7]
[370289323,1751937071828,-503.00785536,0.0003178,7]
[370289324,1751937071838,-200.74,0.0003178,7]
[370289325,1751937071848,-460.0,0.0003178,7]
[370289326,1751937071858,-270.97,0.0003178,7]
[370289327,1751937071867,-556.86,0.0003178,7]
[370289328,1751937071877,-440.426421,0.0003178,7]
[370289329,1751937071887,-460.0,0.0003178,7]
[370289330,1751937071896,-440.426421,0.0003178,7]
[370289331,1751937071905,-460.0,0.0003178,7]
[370289332,1751937071914,-460.0,0.0003178,7]
[370289333,1751937071924,-460.0,0.0003178,7]
[370289334,1751937071933,-460.0,0.0003178,7]
[370289335,1751937071942,-538.93,0.0003178,7]
[370289336,1751937071952,-460.0,0.0003178,7]
[370289337,1751937071962,-496.18,0.0003178,7]
[370289338,1751937071971,-460.0,0.0003178,7]
[370289339,1751937071981,-460.0,0.0003178,7]
[370289340,1751937071990,-460.0,0.0003178,7]
[370289341,1751937072000,-460.0,0.0003178,7]
[370289342,1751937072010,-460.0,0.0003178,7]
[370289343,1751937072019,-661.07,0.0003178,7]
[370289344,1751937072029,-561.47,0.0003178,7]
[370289345,1751937072038,-460.0,0.0003178,7]
[370289346,1751937072048,-460.0,0.0003178,7]
[370289347,1751937072058,-460.0,0.0003178,7]
[370289348,1751937072067,-460.0,0.0003178,7]
[370289349,1751937072076,-460.0,0.0003178,7]
[370289350,1751937072086,-202.81579733,0.0003178,7]
[370289351,1751937072095,-460.0,0.0003178,7]
[370289352,1751937072105,-460.0,0.0003178,7]
[370289353,1751937072114,-460.0,0.0003178,7]
[370289354,1751937072124,-151.0,0.0003178,7]
[370289355,1751937072133,-460.0,0.0003178,7]
[370289356,1751937072142,-460.0,0.0003178,7]
[370289357,1751937072151,-673.52,0.0003178,7]
[370289358,1751937072161,-460.0,0.0003178,7]
[370289359,1751937072170,-460.0,0.0003178,7]
[370289360,1751937072180,-565.51,0.0003178,7]
[370289361,1751937072191,-460.0,0.0003178,7]
[370289362,1751937072201,-151.0,0.0003178,7]
[370289363,1751937072211,-460.0,0.0003178,7]
[370289364,1751937072221,-151.0,0.0003178,7]
[370289365,1751937072230,-244.56,0.0003178,7]
[370289366,1751937072240,-460.0,0.0003178,7]
[370289367,1751937072249,-460.0,0.0003178,7]
[370289368,1751937072259,-565.12,0.0003178,7]
[370289369,1751937072269,-151.0,0.0003178,7]
[370289370,1751937072278,-460.0,0.0003178,7]
[370289371,1751937072287,-460.0,0.0003178,7]
[370289372,1751937072296,-460.0,0.0003178,7]
[370289373,1751937072306,-471.66,0.0003178,7]
[370289374,1751937072315,-460.0,0.0003178,7]
[370289375,1751937072324,-460.0,0.0003178,7]
[370289376,1751937072334,-947.95,0.0003178,7]
[370289377,1751937072343,-460.0,0.0003178,7]
[370289378,1751937072352,-457.55,0.0003178,7]
[370289379,1751937072362,-460.0,0.0003178,7]
[370289380,1751937072372,-1507.82,0.0003178,7]
[370289381,1751937072382,-556.07,0.0003178,7]
[370289382,1751937072392,-593.83,0.0003178,7]
[370289383,1751937072401,-460.0,0.0003178,7]
[370289384,1751937072411,-460.0,0.0003178,7]
[370289385,1751937072423,-582.95,0.0003178,7]
[370289386,1751937072433,-387.27198307,0.0003178,7]
[370289387,1751937072442,-647.74,0.0003178,7]
[370289388,1751937072452,-460.0,0.0003178,7]
[370289389,1751937072462,-497.23,0.0003178,7]
[370289390,1751937072472,-510.92,0.0003178,7]
[370289391,1751937072482,-460.0,0.0003178,7]
[370289392,1751937072493,-460.0,0.0003178,7]
[370289393,1751937072503,-460.0,0.0003178,7]
[370289394,1751937072513,-460.0,0.0003178,7]
[370289395,1751937072523,-663.74,0.0003178,7]
[370289396,1751937072532,-775.04,0.0003178,7]
[370289397,1751937072542,-621.12,0.0003178,7]
[370289398,1751937072551,-325.1,0.0003178,7]
[370289399,1751937072561,-460.0,0.0003178,7]
[370289400,1751937072571,-460.0,0.0003178,7]
[370289401,1751937072580,-518.4,0.0003178,7]
[370289402,1751937072590,-524.52,0.0003178,7]
[370289403,1751937072600,-460.0,0.0003178,7]
[370289404,1751937072609,-490.82,0.0003178,7]
[370289405,1751937072619,-564.32,0.0003178,7]
[370289406,1751937072628,-460.0,0.0003178,7]
[370289407,1751937072637,-460.0,0.0003178,7]
[370289408,1751937072647,-580.37,0.0003178,7]
[370289409,1751937072656,-495.61,0.0003178,7]
[370289410,1751937072665,-460.0,0.0003178,7]
[370289411,1751937072675,-482.67,0.0003178,7]
[370289412,1751937072684,-528.59,0.0003178,7]
[370289413,1751937072694,-468.15,0.0003178,7]
[370289414,1751937072703,-311.42,0.0003178,7]
[370289415,1751937072713,-460.0,0.0003178,7]
[370289416,1751937072723,-290.29,0.0003178,7]
[370289417,1751937072733,-621.12,0.0003178,7]
[370289418,1751937072744,-1005.7,0.0003178,7]
[370289419,1751937072754,-460.0,0.0003178,7]
[370289420,1751937072764,-507.18,0.0003178,7]
[370289421,1751937072774,-460.0,0.0003178,7]
[370289422,1751937072785,-460.0,0.0003178,7]
[370289423,1751937072795,-460.0,0.0003178,7]
[370289424,1751937072808,-252.0626234,0.0003178,7]
[370289425,1751937073108,-460.0,0.00030684,7]
[370289426,1751937073118,-460.0,0.00030958,7]
[370289427,1751937073127,-460.0,0.00030958,7]
[370289428,1751937073137,-460.0,0.00031232,7]
[370289429,1751937073146,-312.74,0.00031232,7]
[370289430,1751937073156,-460.0,0.00031506,7]
[370289431,1751937073165,-434.4173766,0.0003178,7]
[370289432,1751937073174,-460.0,0.0003178,7]
[370289433,1751937073183,-1022.4,0.0003178,7]
[370289434,1751937073193,-659.06,0.0003178,7]
[370289435,1751937073203,-669.19,0.0003178,7]
[370289436,1751937073212,-801.83,0.0003178,7]
[370289437,1751937073222,-460.0,0.0003178,7]
[370289438,1751937073232,-487.73,0.0003178,7]
[370289439,1751937073241,-578.76,0.0003178,7]
[370289440,1751937073251,-460.0,0.0003178,7]
[370289441,1751937073260,-531.48,0.0003178,7]
[370289442,1751937073271,-460.0,0.0003178,7]
[370289443,1751937073281,-1283.19,0.0003178,7]
[370289444,1751937073291,-460.0,0.0003178,7]
[370289445,1751937073302,-632.05,0.0003178,7]
[370289446,1751937073313,-460.0,0.0003178,7]
[370289447,1751937073322,-460.0,0.0003178,7]
[370289448,1751937073332,-2393.98,0.0003178,7]
[370289449,1751937073341,-460.0,0.0003178,7]
[370289450,1751937073351,-1126.56,0.0003178,7]
[370289451,1751937073360,-460.0,0.0003178,7]
[370289452,1751937073370,-1394.09,0.0003178,7]
[370289453,1751937073380,-460.0,0.0003178,7]
[370289454,1751937073389,-1135.43,0.0003178,7]
[370289455,1751937073401,-530.83,0.0003178,7]
[370289456,1751937073412,-2562.25,0.0003178,7]
[370289457,1751937073424,-527.88,0.0003178,7]
[370289458,1751937073435,-674.96,0.0003178,7]
[370289459,1751937073444,-460.0,0.0003178,7]
[370289460,1751937073453,-460.0,0.0003178,7]
[370289461,1751937073463,-460.0,0.0003178,7]
[370289462,1751937073474,-725.59,0.0003178,7]
[370289463,1751937073483,-503.86,0.0003178,7]
[370289464,1751937073492,-1360.3,0.0003178,7]
[370289465,1751937073503,-460.0,0.0003178,7]
[370289466,1751937073512,-460.0,0.0003178,7]
[370289467,1751937073523,-113.69356793,0.0003178,7]
[370289468,1751937073549,-346.30643207,0.0003178,7]
[370289469,1751937073559,-156.19268793,0.0003178,7]
[370289470,1751937073571,-303.80731207,0.0003178,7]
[370289471,1751937073582,-460.0,0.0003178,7]
[370289472,1751937073722,-161.92241556,0.0003178,7]
[370289473,1751937074046,-226.36,0.00030136,7]
[370289474,1751937074055,-247.5327457,0.00030136,7]
[370289475,1751937074065,-460.0,0.00030136,7]
[370289476,1751937074074,-298.07758444,0.0003178,7]
[370289477,1751937074084,-460.0,0.0003178,7]
[370289478,1751937074093,-460.0,0.0003178,7]
[370289479,1751937074103,-460.0,0.0003178,7]
[370289480,1751937074113,-460.0,0.0003178,7]
[370289481,1751937074123,-536.8,0.0003178,7]
[370289482,1751937074132,-472.62,0.0003178,7]
[370289483,1751937074142,-550.05,0.0003178,7]
[370289484,1751937074151,-317.09,0.0003178,7]
[370289485,1751937074162,-460.0,0.0003178,7]
[370289486,1751937074171,-460.0,0.0003178,7]
[370289487,1751937074181,-460.0,0.0003178,7]
[370289488,1751937074191,-460.0,0.0003178,7]
[370289489,1751937074201,-460.0,0.0003178,7]
[370289490,1751937074211,-583.04,0.0003178,7]
[370289491,1751937074220,-460.0,0.0003178,7]
[370289492,1751937074230,-756.09,0.0003178,7]
[370289493,1751937074239,-460.0,0.0003178,7]
[370289494,1751937074249,-812.32,0.0003178,7]
[370289495,1751937074259,-1468.52,0.0003178,7]
[370289496,1751937074268,-599.84,0.0003178,7]
[370289497,1751937074278,-460.0,0.0003178,7]
[370289498,1751937074288,-460.0,0.0003178,7]
[370289499,1751937074298,-460.0,0.0003178,7]
[370289500,1751937074307,-1277.77,0.0003178,7]
[370289501,1751937074317,-460.0,0.0003178,7]
[370289502,1751937074327,-1478.5,0.0003178,7]
[370289503,1751937074336,-460.0,0.0003178,7]
[370289504,1751937074346,-687.25,0.0003178,7]
[370289505,1751937074355,-460.0,0.0003178,7]
[370289506,1751937074365,-696.77,0.0003178,7]
[370289507,1751937074374,-9693.63,0.0003178,7]
[370289508,1751937074384,-460.0,0.0003178,7]
[370289509,1751937074393,-460.0,0.0003178,7]
[370289510,1751937074402,-289.47,0.0003178,7]
[370289511,1751937074412,-2181.97,0.0003178,7]
[370289512,1751937074423,-460.17,0.0003178,7]
[370289513,1751937074435,-926.03,0.0003178,7]
[370289514,1751937074446,-460.0,0.0003178,7]
[370289515,1751937074458,-991.75,0.0003178,7]
[370289516,1751937074468,-341.16160426,0.0003178,7]
[370289517,1751937074477,-585.71,0.0003178,7]
[370289518,1751937074488,-460.0,0.0003178,7]
[370289519,1751937074499,-300.0,0.0003178,2]
[370289520,1751937074509,-460.0,0.0003178,7]
[370289521,1751937074519,-739.63,0.0003178,7]
[370289522,1751937074528,-644.33,0.0003178,7]
[370289523,1751937074538,-850.89,0.0003178,7]
[370289524,1751937074550,-460.0,0.0003178,7]
[370289525,1751937074560,-460.0,0.0003178,7]
[370289526,1751937074569,-564.52,0.0003178,7]
[370289527,1751937074579,-460.0,0.0003178,7]
[370289528,1751937074590,-460.0,0.0003178,7]
[370289529,1751937074600,-460.0,0.0003178,7]
[370289530,1751937074610,-460.0,0.0003178,7]
[370289531,1751937074621,-1418.58,0.0003178,7]
[370289532,1751937074633,-460.0,0.0003178,7]
[370289533,1751937074643,-681.54,0.0003178,7]
[370289534,1751937074653,-460.0,0.0003178,7]
[370289535,1751937074663,-687.76,0.0003178,7]
[370289536,1751937074672,-460.0,0.0003178,7]
[370289537,1751937074682,-460.0,0.0003178,7]
[370289538,1751937074691,-511.97,0.0003178,7]
[370289539,1751937074701,-615.76,0.0003178,7]
[370289540,1751937074710,-473.71,0.0003178,7]
[370289541,1751937074719,-460.0,0.0003178,7]
[370289542,1751937074729,-466.02,0.0003178,7]
[370289543,1751937074739,-1195.65,0.0003178,7]
[370289544,1751937074749,-709.33,0.0003178,7]
[370289545,1751937074759,-602.41,0.0003178,7]
[370289546,1751937074769,-550.36,0.0003178,7]
[370289547,1751937074778,-460.0,0.0003178,7]
[370289548,1751937074788,-577.54,0.0003178,7]
[370289549,1751937074797,-249.15,0.0003178,7]
[370289550,1751937074806,-460.0,0.0003178,7]
[370289551,1751937074816,-1669.86,0.0003178,7]
[370289552,1751937074825,-460.0,0.0003178,7]
[370289553,1751937074834,-484.13,0.0003178,7]
[370289554,1751937074844,-317.7,0.0003178,7]
[370289555,1751937074853,-279.5,0.0003178,7]
[370289556,1751937074862,-888.97,0.0003178,7]
[370289557,1751937074872,-460.0,0.0003178,7]
[370289558,1751937074882,-523.29,0.0003178,7]
[370289559,1751937074892,-460.0,0.0003178,7]
[370289560,1751937074901,-753.67,0.0003178,7]
[370289561,1751937074911,-460.0,0.0003178,7]
[370289562,1751937074920,-783.83,0.0003178,7]
[370289563,1751937074929,-594.53,0.0003178,7]
[370289564,1751937074939,-460.0,0.0003178,7]
[370289565,1751937074949,-628.54,0.0003178,7]
[370289566,1751937074958,-460.0,0.0003178,7]
[370289567,1751937074967,-568.94,0.0003178,7]
[370289568,1751937074977,-828.38,0.0003178,7]
[370289569,1751937074986,-460.0,0.0003178,7]
[370289570,1751937074997,-460.0,0.0003178,7]
[370289571,1751937075007,-460.0,0.0003178,7]
[370289572,1751937075018,-372.21498742,0.0003178,7]
[370289575,1751937224100,157.18,0.00013699,2]
[370289577,1751937416108,168.79,0.00029599,120]
[370289591,1751938232368,-250.0,0.00015,2]
[370289592,1751938232378,-476.0,0.00019399,2]
[370289593,1751938232388,-14173.11029268,0.000194,2]
[370289594,1751938232473,-2260.49085906,0.000194,2]
[370289595,1751938232616,-344.08419986,0.000194,2]
[370289596,1751938232628,-4277.27075912,0.000194,2]
[370289632,1751938238393,-429.67894001,0.000194,2]
[370289710,1751938240495,-379.66173466,0.000194,2]
[370289712,1751938240508,-2521.56028,0.000194,2]
[370289713,1751938240598,-2039.46653947,0.000194,2]
[370289714,1751938240607,-166.7,0.00023848,2]
[370289715,1751938240617,-5000.00314086,0.00024,5]
[370289716,1751938240628,-163.83,0.00028943,2]
[370289717,1751938240637,-200.0,0.00029032,7]
[370289718,1751938240647,-162.78,0.00029179,2]
[370289719,1751938240657,-1000.0,0.00029199,2]
[370289720,1751938240667,-5000.0,0.00029217,2]
[370289721,1751938240677,-23900.0,0.00029285,2]
[370289722,1751938240688,-506.0,0.00029311,2]
[370289723,1751938240697,-666.0,0.00029365,2]
[370289724,1751938240707,-164.43,0.00029456,2]
[370289725,1751938240717,-250.0,0.00029596,2]
[370289726,1751938240726,-151.57,0.00029789,2]
[370289727,1751938240735,-1431.61511501,0.000299,21]
[370289728,1751938240745,-152.08159381,0.000299,2]
[370289729,1751938240755,-162.74340057,0.00029999,2]
[370289730,1751938240764,-14295.23,0.0003,7]
[370289731,1751938240773,-154266.31926821,0.0003,5]
[370289732,1751938240782,-210.31172994,0.0003,7]
[370289733,1751938240792,-157.4,0.00030026,2]
[370289734,1751938240802,-500.0,0.00030036,2]
[370289735,1751938240811,-5000.0,0.00030036,2]
[370289736,1751938240821,-44655.7948,0.00030036,3]
[370289737,1751938240833,-2463.877,0.00030036,2]
[370289738,1751938240842,-166.56973383,0.00030036,15]
[370289739,1751938240852,-236.20266434,0.00030135,2]
[370289740,1751938240861,-460.0,0.00030136,7]
[370289741,1751938240871,-497.43177348,0.00030136,7]
[370289742,1751938240881,-555.02,0.00030136,7]
[370289743,1751938240890,-490.0,0.00030136,7]
[370289744,1751938240899,-460.0,0.00030136,7]
[370289745,1751938240909,-460.0,0.00030136,7]
[370289746,1751938240918,-460.0,0.00030136,7]
[370289747,1751938240928,-490.0,0.00030136,7]
[370289748,1751938240937,-460.0,0.00030136,7]
[370289749,1751938240947,-460.0,0.00030136,7]
[370289750,1751938240958,-460.0,0.00030136,7]
[370289752,1751938240968,-342.4844544,0.00030136,7]
[370289754,1751938240977,-516.1,0.00030136,7]
[370289756,1751938240986,-460.0,0.00030136,7]
[370289758,1751938240996,-460.0,0.00030136,7]
[370289760,1751938241005,-460.0,0.00030136,7]
[370289762,1751938241014,-460.0,0.00030136,7]
[370289764,1751938241023,-460.0,0.00030136,7]
[370289766,1751938241033,-460.0,0.00030136,7]
[370289768,1751938241042,-460.0,0.00030136,7]
[370289770,1751938241050,-460.0,0.00030136,7]
[370289771,1751938241060,-460.0,0.00030136,7]
[370289774,1751938241070,-460.0,0.00030136,7]
[370289776,1751938241080,-460.0,0.00030136,7]
[370289778,1751938241089,-500.0,0.00030136,7]
[370289779,1751938241097,-460.0,0.00030136,7]
[370289782,1751938241107,-500.0,0.00030136,7]
[370289784,1751938241116,-500.0,0.00030136,7]
[370289786,1751938241126,-460.0,0.00030136,7]
[370289788,1751938241135,-460.0,0.00030136,7]
[370289790,1751938241144,-460.0,0.00030136,7]
[370289792,1751938241153,-460.0,0.00030136,7]
[370289794,1751938241162,-460.0,0.00030136,7]
[370289796,1751938241171,-460.0,0.00030136,7]
[370289798,1751938241180,-490.0,0.00030136,7]
[370289799,1751938241189,-460.0,0.00030136,7]
[370289802,1751938241199,-490.0,0.00030136,7]
[370289804,1751938241208,-460.0,0.00030136,7]
[370289805,1751938241217,-366.53221353,0.00030136,7]
[370289808,1751938241226,-460.0,0.00030136,7]
[370289810,1751938241235,-490.0,0.00030136,7]
[370289812,1751938241245,-497.93440252,0.00030136,7]
[370289814,1751938241255,-490.0,0.00030136,7]
[370289816,1751938241264,-460.0,0.00030136,7]
[370289818,1751938241273,-460.0,0.00030136,7]
[370289820,1751938241282,-460.0,0.00030136,7]
[370289822,1751938241291,-568.31,0.00030136,7]
[370289824,1751938241301,-460.0,0.00030136,7]
[370289826,1751938241310,-598.43,0.00030136,7]
[370289828,1751938241319,-460.0,0.00030136,7]
[370289830,1751938241329,-460.0,0.00030136,7]
[370289832,1751938241338,-460.0,0.00030136,7]
[370289834,1751938241347,-460.0,0.00030136,7]
[370289836,1751938241357,-558.4,0.00030136,7]
[370289838,1751938241366,-460.0,0.00030136,7]
[370289840,1751938241376,-490.0,0.00030136,7]
[370289842,1751938241385,-490.0,0.00030136,7]
[370289844,1751938241395,-460.0,0.00030136,7]
[370289846,1751938241405,-490.0,0.00030136,7]
[370289848,1751938241415,-490.0,0.00030136,7]
[370289850,1751938241424,-491.15866326,0.00030136,7]
[370289852,1751938241434,-490.0,0.00030136,7]
[370289854,1751938241443,-460.0,0.00030136,7]
[370289856,1751938241452,-460.0,0.00030136,7]
[370289858,1751938241461,-543.88,0.00030136,7]
[370289860,1751938241470,-460.0,0.00030136,7]
[370289862,1751938241479,-490.0,0.00030136,7]
[370289864,1751938241488,-460.0,0.00030136,7]
[370289866,1751938241497,-460.0,0.00030136,7]
[370289868,1751938241511,-460.0,0.00030136,7]
[370289870,1751938241520,-460.0,0.00030136,7]
[370289872,1751938241530,-460.0,0.00030136,7]
[370289874,1751938241539,-490.0,0.00030136,7]
[370289875,1751938241548,-460.0,0.00030136,7]
[370289877,1751938241557,-296.30040901,0.00030136,7]
[370289879,1751938241567,-460.0,0.00030136,7]
[370289881,1751938241576,-498.76,0.00030136,7]
[370289883,1751938241586,-460.0,0.00030136,7]
[370289885,1751938241594,-460.0,0.00030136,7]
[370289887,1751938241603,-490.0,0.00030136,7]
[370289889,1751938241612,-460.0,0.00030136,7]
[370289891,1751938241622,-490.0,0.00030136,7]
[370289894,1751938241631,-490.0,0.00030136,7]